{"text_format":"1","workbook":"xlsx","n_sheets":5,"sheets":["How To Use this Workbook","Unit Calculator","DD Budget","Base Budget Calculator","Rates"],"not_rendered":{"charts":0,"images":5,"macros":1,"external_links":0,"defined_names":4,"comments":1,"pivot_tables":0},"unopened":[],"bounds":{"document_bytes":16777216,"sheet_cells":100000,"rows_first":2000,"rows_last":500,"rows_between":2000,"halvings":0,"cell_chars":16384,"cell_head_chars":4096},"cells_cut":0,"cells_raw":0,"read":"whole","date_system":"1900"}

{"sheet":"How To Use this Workbook","index":0,"n_rows":55,"n_cols":15,"rows_kept":55,"cut":false,"hidden":false,"merged":[[37,12,37,13],[38,12,38,13],[39,12,39,13],[41,12,41,13],[15,12,15,13],[16,12,16,13],[18,12,18,13],[34,12,34,13],[35,12,35,13]]}
[]
[]
[]
[]
[]
[]
[]
[]
[]
[]
[]
[]
[]
[]
[]
[null,null,null,null,null,null,null,null,null,null,null,null,"Base Budget Total: ",null,"Total of all services in the budget that are part of a person's \"Base Budget\" Services"]
[null,null,null,null,null,null,null,null,null,null,null,null,"Annual Budget:",null,"Sum of all of a person's services for the year except those services that are consultative, "]
[null,null,null,null,null,null,null,null,null,null,null,null,null,null,"add-ons or equipment/modifications"]
[null,null,null,null,null,null,null,null,null,null,null,null,"Total:",null,"Sum of all of a person's services for the year (Annual Budget + Equipment, Consultative,"]
[null,null,null,null,null,null,null,null,null,null,null,null,null,null,"and add-on services."]
[]
[]
[]
[]
[]
[]
[]
[]
[]
[]
[]
[]
[]
[]
[null,null,null,null,null,null,null,null,null,null,null,null,"Number:",null,"The amount per time-period. (i.e. the \"15\" in 15 hours per week)"]
[null,null,null,null,null,null,null,null,null,null,null,null,"Hours or Units:",null,"Enter whether or not you wish to calculate in hours or units per time-period"]
[null,null,null,null,null,null,null,null,null,null,null,null,null,null,"(i.e. 15 hours per week OR 15 units per week"]
[null,null,null,null,null,null,null,null,null,null,null,null,"Per:",null,"Day, Week, Month or Per Auth"]
[null,null,null,null,null,null,null,null,null,null,null,null,"Cost:",null,"Total cost for that service during that timeperiod.  Auto-calculated."]
[null,null,null,null,null,null,null,null,null,null,null,null,"Balance:",null,"Base Budget Allocation amount minus (-) Cost.  Auto calculated.  Each Line subrtracts"]
[null,null,null,null,null,null,null,null,null,null,null,null,null,null,"from the line above it."]
[null,null,null,null,null,null,null,null,null,null,null,null,"Overage:",null,"Total number per time-period required to keep the services under the Base Budget Allocation"]
[null,null,null,null,null,null,null,null,null,null,null,null,null,null,"(see example below)"]
[]
[]
[]
[]
[]
[]
[]
[]
[]
[null,null,null,null,null,null,null,null,null,null,null,null,"** In this example, 25 hours per week of Community Networking would be $19,302.68 over the Allocated Budget"]
[null,null,null,null,null,null,null,null,null,null,null,null,"and 17 Hours per week of this service would need to be removed from the budget in order for it to return to"]
[null,null,null,null,null,null,null,null,null,null,null,null,"under the Allocated Budget amount."]

{"sheet":"Unit Calculator","index":1,"n_rows":45,"n_cols":6,"rows_kept":45,"cut":false,"hidden":false,"merged":[[39,0,39,1],[42,0,42,6],[0,0,0,2],[4,1,4,2],[8,1,8,2],[23,1,23,2],[27,1,27,2],[38,0,38,6]]}
["Unit Calculator"]
[]
[null,"If Service limitation is based upon hours for a certain time period, use the following:"]
[null,"Dates for Authorization",null,"Start Date","End Date","Total Days:"]
[null,null,null,null,null,{"$f":"DATEDIF(D5,E5,\"d\")+1","v":1}]
[]
[]
[null,"Service Limitation"]
[null,"Hours Per:",null,"Week","Month"]
[null,null,"Total on Auth",{"$f":"F5/7","v":0.14000000000000001},{"$f":"F5/30","v":0.03}]
[null,null,null," "]
[null,null,null,{"$f":"SUM(D10*D11)*4","v":{"$error":"#VALUE!"}},{"$f":"SUM(E10*E11)*4","v":0},{"$f":"((F11/12)*ROUNDDOWN(E10,0)*4)","v":0}]
[]
[]
[null,"Number of Units Needed"]
[null,null,null,{"$f":"IFERROR(ROUND(D12,0),\"\")","v":""},{"$f":"ROUND(E12,0)","v":0}]
[]
[]
[]
[]
[null,"If Service Limitation is based upon units for a  certain time period, use the following:"]
[]
[null,"Dates for Authorization",null,"Start Date","End Date","Total Days:"]
[null,null,null,null,null,{"$f":"DATEDIF(D24,E24,\"d\")+1","v":1}]
[]
[]
[null,"Service Limitation"]
[null,"Units Per:",null,"Week","Month"]
[null,null,"Total on Auth",{"$f":"F24/7","v":0.14000000000000001},{"$f":"F24/30","v":0.03}]
[]
[null,null,null,{"$f":"SUM(D29*D30)","v":0},{"$f":"SUM(E29*E30)","v":0},{"$f":"SUM(F29*F30)","v":0}]
[]
[]
[null,"Number of Units Needed"]
[null,null,null,{"$f":"ROUND(D31,0)","v":0},{"$f":"ROUND(E31,0)","v":0},{"$f":"ROUND(F31,0)","v":0}]
[]
[]
[]
["90 Day (13-16 Hours per day) Community Living and Supports Calculator"]
["Start Date:",null,null,"End Date Will Be:",{"$f":"IF(C40=\"\",\"\",C40+89)","v":""}]
[null,null,null,"Must be Turned In By:",{"$f":"IF(C40-14<0,\"\",C40-14)","v":""}]
[]
["180 Day (>16 hours per day) Community Living and Supports Calculator"]
[null,"Start Date:",null,"End Date will Be:",{"$f":"IF(C44=\"\",\"\",C44+179)","v":""}]
[null,null,null,"Must be Turned In By:",{"$f":"IF(C44-14<0,\"\",C44-14)","v":""}]

{"sheet":"DD Budget","index":2,"n_rows":38,"n_cols":10,"rows_kept":38,"cut":false,"hidden":false,"merged":[[18,14,20,14],[5,0,5,9],[46,16,46,17],[25,1,25,2],[25,3,26,3],[25,4,26,6],[25,7,26,7],[25,8,26,8],[24,0,24,8],[29,0,31,4]]}
[null,null,null,null,null,null,null,null,null,"Rev. 12/18/2023"]
[]
["Client:",null,null,null,null,null,null,"Record Number:"]
[]
[]
["NC Innovations Individual Budget"]
["Effective Date:"]
[]
["Service Code:","Provider:","Qualifier:","Units Requested:","Rate:","Total","Start Date:","End Date:","Notes:","Discontinued Date:"]
[null,null,null,null,{"$f":"IFERROR(IF(AND($B10=\"Autism Society of North Carolina\",$G10<DATE(2022,2,1)),VLOOKUP($A10,ASNC_Rates[],2,FALSE),IF(AND($B10=\"Autism Society of North Carolina\",$G10<DATE(2022,3,1)),VLOOKUP($A10,ASNC_Rates[],3,FALSE), IF(AND($B10=\"Autism Society of North Carolina\",$G10<DATE(2022,10,1)),VLOOKUP($A10,ASNC_Rates[],4,FALSE), IF(AND($B10=\"Autism Society of North Carolina\",$G10<DATE(2023,7,1)),VLOOKUP($A10,ASNC_Rates[],5,FALSE),IF($B10=\"Autism Society of North Carolina\",VLOOKUP($A10,ASNC_Rates[],6,FALSE),IF($G10<DATE(2022,2,1),VLOOKUP($A10,RateLookup2015[],5,FALSE),IF($G10<DATE(2022,3,1),VLOOKUP($A10,RateLookup2015[],6,FALSE),IF($G10<DATE(2022,10,1),VLOOKUP($A10,RateLookup2015[],7,FALSE),IF($G10<DATE(2023,7,1),VLOOKUP($A10,RateLookup2015[],8,FALSE),VLOOKUP($A10,RateLookup2015[],9,FALSE)))))))))),\"\")","v":""},{"$f":"IFERROR(D10*E10,\"\")","v":""}]
[{"$f":"TRIM(B11&\" \"&C11)","v":""},null,null,null,{"$f":"IFERROR(IF(AND($B11=\"Autism Society of North Carolina\",$G11<DATE(2022,2,1)),VLOOKUP($A11,ASNC_Rates[],2,FALSE),IF(AND($B11=\"Autism Society of North Carolina\",$G11<DATE(2022,3,1)),VLOOKUP($A11,ASNC_Rates[],3,FALSE), IF(AND($B11=\"Autism Society of North Carolina\",$G11<DATE(2022,10,1)),VLOOKUP($A11,ASNC_Rates[],4,FALSE), IF(AND($B11=\"Autism Society of North Carolina\",$G11<DATE(2023,7,1)),VLOOKUP($A11,ASNC_Rates[],5,FALSE),IF($B11=\"Autism Society of North Carolina\",VLOOKUP($A11,ASNC_Rates[],6,FALSE),IF($G11<DATE(2022,2,1),VLOOKUP($A11,RateLookup2015[],5,FALSE),IF($G11<DATE(2022,3,1),VLOOKUP($A11,RateLookup2015[],6,FALSE),IF($G11<DATE(2022,10,1),VLOOKUP($A11,RateLookup2015[],7,FALSE),IF($G11<DATE(2023,7,1),VLOOKUP($A11,RateLookup2015[],8,FALSE),VLOOKUP($A11,RateLookup2015[],9,FALSE)))))))))),\"\")","v":""},{"$f":"IFERROR(D11*E11,\"\")","v":""}]
["",null,null,null,{"$f":"IFERROR(IF(AND($B12=\"Autism Society of North Carolina\",$G12<DATE(2022,2,1)),VLOOKUP($A12,ASNC_Rates[],2,FALSE),IF(AND($B12=\"Autism Society of North Carolina\",$G12<DATE(2022,3,1)),VLOOKUP($A12,ASNC_Rates[],3,FALSE), IF(AND($B12=\"Autism Society of North Carolina\",$G12<DATE(2022,10,1)),VLOOKUP($A12,ASNC_Rates[],4,FALSE), IF(AND($B12=\"Autism Society of North Carolina\",$G12<DATE(2023,7,1)),VLOOKUP($A12,ASNC_Rates[],5,FALSE),IF($B12=\"Autism Society of North Carolina\",VLOOKUP($A12,ASNC_Rates[],6,FALSE),IF($G12<DATE(2022,2,1),VLOOKUP($A12,RateLookup2015[],5,FALSE),IF($G12<DATE(2022,3,1),VLOOKUP($A12,RateLookup2015[],6,FALSE),IF($G12<DATE(2022,10,1),VLOOKUP($A12,RateLookup2015[],7,FALSE),IF($G12<DATE(2023,7,1),VLOOKUP($A12,RateLookup2015[],8,FALSE),VLOOKUP($A12,RateLookup2015[],9,FALSE)))))))))),\"\")","v":""},""]
["",null,null,null,{"$f":"IFERROR(IF(AND($B13=\"Autism Society of North Carolina\",$G13<DATE(2022,2,1)),VLOOKUP($A13,ASNC_Rates[],2,FALSE),IF(AND($B13=\"Autism Society of North Carolina\",$G13<DATE(2022,3,1)),VLOOKUP($A13,ASNC_Rates[],3,FALSE), IF(AND($B13=\"Autism Society of North Carolina\",$G13<DATE(2022,10,1)),VLOOKUP($A13,ASNC_Rates[],4,FALSE), IF(AND($B13=\"Autism Society of North Carolina\",$G13<DATE(2023,7,1)),VLOOKUP($A13,ASNC_Rates[],5,FALSE),IF($B13=\"Autism Society of North Carolina\",VLOOKUP($A13,ASNC_Rates[],6,FALSE),IF($G13<DATE(2022,2,1),VLOOKUP($A13,RateLookup2015[],5,FALSE),IF($G13<DATE(2022,3,1),VLOOKUP($A13,RateLookup2015[],6,FALSE),IF($G13<DATE(2022,10,1),VLOOKUP($A13,RateLookup2015[],7,FALSE),IF($G13<DATE(2023,7,1),VLOOKUP($A13,RateLookup2015[],8,FALSE),VLOOKUP($A13,RateLookup2015[],9,FALSE)))))))))),\"\")","v":""},""]
["",null,null,null,{"$f":"IFERROR(IF(AND($B14=\"Autism Society of North Carolina\",$G14<DATE(2022,2,1)),VLOOKUP($A14,ASNC_Rates[],2,FALSE),IF(AND($B14=\"Autism Society of North Carolina\",$G14<DATE(2022,3,1)),VLOOKUP($A14,ASNC_Rates[],3,FALSE), IF(AND($B14=\"Autism Society of North Carolina\",$G14<DATE(2022,10,1)),VLOOKUP($A14,ASNC_Rates[],4,FALSE), IF(AND($B14=\"Autism Society of North Carolina\",$G14<DATE(2023,7,1)),VLOOKUP($A14,ASNC_Rates[],5,FALSE),IF($B14=\"Autism Society of North Carolina\",VLOOKUP($A14,ASNC_Rates[],6,FALSE),IF($G14<DATE(2022,2,1),VLOOKUP($A14,RateLookup2015[],5,FALSE),IF($G14<DATE(2022,3,1),VLOOKUP($A14,RateLookup2015[],6,FALSE),IF($G14<DATE(2022,10,1),VLOOKUP($A14,RateLookup2015[],7,FALSE),IF($G14<DATE(2023,7,1),VLOOKUP($A14,RateLookup2015[],8,FALSE),VLOOKUP($A14,RateLookup2015[],9,FALSE)))))))))),\"\")","v":""},""]
["",null,null,null,{"$f":"IFERROR(IF(AND($B15=\"Autism Society of North Carolina\",$G15<DATE(2022,2,1)),VLOOKUP($A15,ASNC_Rates[],2,FALSE),IF(AND($B15=\"Autism Society of North Carolina\",$G15<DATE(2022,3,1)),VLOOKUP($A15,ASNC_Rates[],3,FALSE), IF(AND($B15=\"Autism Society of North Carolina\",$G15<DATE(2022,10,1)),VLOOKUP($A15,ASNC_Rates[],4,FALSE), IF(AND($B15=\"Autism Society of North Carolina\",$G15<DATE(2023,7,1)),VLOOKUP($A15,ASNC_Rates[],5,FALSE),IF($B15=\"Autism Society of North Carolina\",VLOOKUP($A15,ASNC_Rates[],6,FALSE),IF($G15<DATE(2022,2,1),VLOOKUP($A15,RateLookup2015[],5,FALSE),IF($G15<DATE(2022,3,1),VLOOKUP($A15,RateLookup2015[],6,FALSE),IF($G15<DATE(2022,10,1),VLOOKUP($A15,RateLookup2015[],7,FALSE),IF($G15<DATE(2023,7,1),VLOOKUP($A15,RateLookup2015[],8,FALSE),VLOOKUP($A15,RateLookup2015[],9,FALSE)))))))))),\"\")","v":""},""]
["",null,null,null,{"$f":"IFERROR(IF(AND($B16=\"Autism Society of North Carolina\",$G16<DATE(2022,2,1)),VLOOKUP($A16,ASNC_Rates[],2,FALSE),IF(AND($B16=\"Autism Society of North Carolina\",$G16<DATE(2022,3,1)),VLOOKUP($A16,ASNC_Rates[],3,FALSE), IF(AND($B16=\"Autism Society of North Carolina\",$G16<DATE(2022,10,1)),VLOOKUP($A16,ASNC_Rates[],4,FALSE), IF(AND($B16=\"Autism Society of North Carolina\",$G16<DATE(2023,7,1)),VLOOKUP($A16,ASNC_Rates[],5,FALSE),IF($B16=\"Autism Society of North Carolina\",VLOOKUP($A16,ASNC_Rates[],6,FALSE),IF($G16<DATE(2022,2,1),VLOOKUP($A16,RateLookup2015[],5,FALSE),IF($G16<DATE(2022,3,1),VLOOKUP($A16,RateLookup2015[],6,FALSE),IF($G16<DATE(2022,10,1),VLOOKUP($A16,RateLookup2015[],7,FALSE),IF($G16<DATE(2023,7,1),VLOOKUP($A16,RateLookup2015[],8,FALSE),VLOOKUP($A16,RateLookup2015[],9,FALSE)))))))))),\"\")","v":""},""]
["",null,null,null,{"$f":"IFERROR(IF(AND($B17=\"Autism Society of North Carolina\",$G17<DATE(2022,2,1)),VLOOKUP($A17,ASNC_Rates[],2,FALSE),IF(AND($B17=\"Autism Society of North Carolina\",$G17<DATE(2022,3,1)),VLOOKUP($A17,ASNC_Rates[],3,FALSE), IF(AND($B17=\"Autism Society of North Carolina\",$G17<DATE(2022,10,1)),VLOOKUP($A17,ASNC_Rates[],4,FALSE), IF(AND($B17=\"Autism Society of North Carolina\",$G17<DATE(2023,7,1)),VLOOKUP($A17,ASNC_Rates[],5,FALSE),IF($B17=\"Autism Society of North Carolina\",VLOOKUP($A17,ASNC_Rates[],6,FALSE),IF($G17<DATE(2022,2,1),VLOOKUP($A17,RateLookup2015[],5,FALSE),IF($G17<DATE(2022,3,1),VLOOKUP($A17,RateLookup2015[],6,FALSE),IF($G17<DATE(2022,10,1),VLOOKUP($A17,RateLookup2015[],7,FALSE),IF($G17<DATE(2023,7,1),VLOOKUP($A17,RateLookup2015[],8,FALSE),VLOOKUP($A17,RateLookup2015[],9,FALSE)))))))))),\"\")","v":""},""]
["",null,null,null,{"$f":"IFERROR(IF(AND($B18=\"Autism Society of North Carolina\",$G18<DATE(2022,2,1)),VLOOKUP($A18,ASNC_Rates[],2,FALSE),IF(AND($B18=\"Autism Society of North Carolina\",$G18<DATE(2022,3,1)),VLOOKUP($A18,ASNC_Rates[],3,FALSE), IF(AND($B18=\"Autism Society of North Carolina\",$G18<DATE(2022,10,1)),VLOOKUP($A18,ASNC_Rates[],4,FALSE), IF(AND($B18=\"Autism Society of North Carolina\",$G18<DATE(2023,7,1)),VLOOKUP($A18,ASNC_Rates[],5,FALSE),IF($B18=\"Autism Society of North Carolina\",VLOOKUP($A18,ASNC_Rates[],6,FALSE),IF($G18<DATE(2022,2,1),VLOOKUP($A18,RateLookup2015[],5,FALSE),IF($G18<DATE(2022,3,1),VLOOKUP($A18,RateLookup2015[],6,FALSE),IF($G18<DATE(2022,10,1),VLOOKUP($A18,RateLookup2015[],7,FALSE),IF($G18<DATE(2023,7,1),VLOOKUP($A18,RateLookup2015[],8,FALSE),VLOOKUP($A18,RateLookup2015[],9,FALSE)))))))))),\"\")","v":""},""]
["",null,null,null,{"$f":"IFERROR(IF(AND($B19=\"Autism Society of North Carolina\",$G19<DATE(2022,2,1)),VLOOKUP($A19,ASNC_Rates[],2,FALSE),IF(AND($B19=\"Autism Society of North Carolina\",$G19<DATE(2022,3,1)),VLOOKUP($A19,ASNC_Rates[],3,FALSE), IF(AND($B19=\"Autism Society of North Carolina\",$G19<DATE(2022,10,1)),VLOOKUP($A19,ASNC_Rates[],4,FALSE), IF(AND($B19=\"Autism Society of North Carolina\",$G19<DATE(2023,7,1)),VLOOKUP($A19,ASNC_Rates[],5,FALSE),IF($B19=\"Autism Society of North Carolina\",VLOOKUP($A19,ASNC_Rates[],6,FALSE),IF($G19<DATE(2022,2,1),VLOOKUP($A19,RateLookup2015[],5,FALSE),IF($G19<DATE(2022,3,1),VLOOKUP($A19,RateLookup2015[],6,FALSE),IF($G19<DATE(2022,10,1),VLOOKUP($A19,RateLookup2015[],7,FALSE),IF($G19<DATE(2023,7,1),VLOOKUP($A19,RateLookup2015[],8,FALSE),VLOOKUP($A19,RateLookup2015[],9,FALSE)))))))))),\"\")","v":""},""]
["",null,null,null,{"$f":"IFERROR(IF(AND($B20=\"Autism Society of North Carolina\",$G20<DATE(2022,2,1)),VLOOKUP($A20,ASNC_Rates[],2,FALSE),IF(AND($B20=\"Autism Society of North Carolina\",$G20<DATE(2022,3,1)),VLOOKUP($A20,ASNC_Rates[],3,FALSE), IF(AND($B20=\"Autism Society of North Carolina\",$G20<DATE(2022,10,1)),VLOOKUP($A20,ASNC_Rates[],4,FALSE), IF(AND($B20=\"Autism Society of North Carolina\",$G20<DATE(2023,7,1)),VLOOKUP($A20,ASNC_Rates[],5,FALSE),IF($B20=\"Autism Society of North Carolina\",VLOOKUP($A20,ASNC_Rates[],6,FALSE),IF($G20<DATE(2022,2,1),VLOOKUP($A20,RateLookup2015[],5,FALSE),IF($G20<DATE(2022,3,1),VLOOKUP($A20,RateLookup2015[],6,FALSE),IF($G20<DATE(2022,10,1),VLOOKUP($A20,RateLookup2015[],7,FALSE),IF($G20<DATE(2023,7,1),VLOOKUP($A20,RateLookup2015[],8,FALSE),VLOOKUP($A20,RateLookup2015[],9,FALSE)))))))))),\"\")","v":""},""]
["",null,null,null,{"$f":"IFERROR(IF(AND($B21=\"Autism Society of North Carolina\",$G21<DATE(2022,2,1)),VLOOKUP($A21,ASNC_Rates[],2,FALSE),IF(AND($B21=\"Autism Society of North Carolina\",$G21<DATE(2022,3,1)),VLOOKUP($A21,ASNC_Rates[],3,FALSE), IF(AND($B21=\"Autism Society of North Carolina\",$G21<DATE(2022,10,1)),VLOOKUP($A21,ASNC_Rates[],4,FALSE), IF(AND($B21=\"Autism Society of North Carolina\",$G21<DATE(2023,7,1)),VLOOKUP($A21,ASNC_Rates[],5,FALSE),IF($B21=\"Autism Society of North Carolina\",VLOOKUP($A21,ASNC_Rates[],6,FALSE),IF($G21<DATE(2022,2,1),VLOOKUP($A21,RateLookup2015[],5,FALSE),IF($G21<DATE(2022,3,1),VLOOKUP($A21,RateLookup2015[],6,FALSE),IF($G21<DATE(2022,10,1),VLOOKUP($A21,RateLookup2015[],7,FALSE),IF($G21<DATE(2023,7,1),VLOOKUP($A21,RateLookup2015[],8,FALSE),VLOOKUP($A21,RateLookup2015[],9,FALSE)))))))))),\"\")","v":""},""]
["",null,null,null,{"$f":"IFERROR(IF(AND($B22=\"Autism Society of North Carolina\",$G22<DATE(2022,2,1)),VLOOKUP($A22,ASNC_Rates[],2,FALSE),IF(AND($B22=\"Autism Society of North Carolina\",$G22<DATE(2022,3,1)),VLOOKUP($A22,ASNC_Rates[],3,FALSE), IF(AND($B22=\"Autism Society of North Carolina\",$G22<DATE(2022,10,1)),VLOOKUP($A22,ASNC_Rates[],4,FALSE), IF(AND($B22=\"Autism Society of North Carolina\",$G22<DATE(2023,7,1)),VLOOKUP($A22,ASNC_Rates[],5,FALSE),IF($B22=\"Autism Society of North Carolina\",VLOOKUP($A22,ASNC_Rates[],6,FALSE),IF($G22<DATE(2022,2,1),VLOOKUP($A22,RateLookup2015[],5,FALSE),IF($G22<DATE(2022,3,1),VLOOKUP($A22,RateLookup2015[],6,FALSE),IF($G22<DATE(2022,10,1),VLOOKUP($A22,RateLookup2015[],7,FALSE),IF($G22<DATE(2023,7,1),VLOOKUP($A22,RateLookup2015[],8,FALSE),VLOOKUP($A22,RateLookup2015[],9,FALSE)))))))))),\"\")","v":""},{"$f":"IFERROR(D22*E22,\"\")","v":""}]
["",null,null,null,{"$f":"IFERROR(IF(AND($B23=\"Autism Society of North Carolina\",$G23<DATE(2022,2,1)),VLOOKUP($A23,ASNC_Rates[],2,FALSE),IF(AND($B23=\"Autism Society of North Carolina\",$G23<DATE(2022,3,1)),VLOOKUP($A23,ASNC_Rates[],3,FALSE), IF(AND($B23=\"Autism Society of North Carolina\",$G23<DATE(2022,10,1)),VLOOKUP($A23,ASNC_Rates[],4,FALSE), IF(AND($B23=\"Autism Society of North Carolina\",$G23<DATE(2023,7,1)),VLOOKUP($A23,ASNC_Rates[],5,FALSE),IF($B23=\"Autism Society of North Carolina\",VLOOKUP($A23,ASNC_Rates[],6,FALSE),IF($G23<DATE(2022,2,1),VLOOKUP($A23,RateLookup2015[],5,FALSE),IF($G23<DATE(2022,3,1),VLOOKUP($A23,RateLookup2015[],6,FALSE),IF($G23<DATE(2022,10,1),VLOOKUP($A23,RateLookup2015[],7,FALSE),IF($G23<DATE(2023,7,1),VLOOKUP($A23,RateLookup2015[],8,FALSE),VLOOKUP($A23,RateLookup2015[],9,FALSE)))))))))),\"\")","v":""},{"$f":"IFERROR(D23*E23,\"\")","v":""}]
[]
["Innovations"]
["Base Budget Total:",{"$f":"SUMPRODUCT(SUMIF(Budget[Service Code:],BaseBudgetSvs[],Budget[Total]))","v":0},null,"Annual Budget","Equipment and Consultative Services",null,null,"Add Ons","Total"]
["Employer of Record                     Self Directed","Agency w/Choice    Self Directed","Provider Directed"]
[{"$f":"SUMIF(C10:C23,\"Employer of Record\",F10:F23)","v":0},{"$f":"SUMIF(C10:C23,\"Agency with Choice\",F10:F23)","v":0},{"$f":"SUMIF(C10:C23,\"Provider Directed\",F10:F23)","v":0},{"$f":"SUM(A28,B28,C28)","v":0},null,{"$f":"SUMPRODUCT(SUMIF(Budget[Service Code:],EquipandConsulSvs[],Budget[Total]))","v":0},null,{"$f":"SUMPRODUCT(SUMIF(Budget[Service Code:],AddOnSvs[],Budget[Total]))","v":0},{"$f":"SUM(D28,F28,H28)","v":0}]
[]
["Funding Source Summary",null,null,null,null,"Medicaid Waiver C","Medicaid State Plan","Other","Total"]
[null,null,null,null,null,{"$f":"SUMIF(C10:C23,\"Medicaid\",F10:F23)","v":0},{"$f":"SUMIF(C10:C23,\"State\",F10:F23)","v":0},{"$f":"SUMIF(C10:C23,\"Other\",F10:F23)","v":0},{"$f":"SUM(F31:H31)","v":0}]
[null,null,null,null,null,null,null,"Total Budget:",{"$f":"SUM(I28,I31)","v":0}]
[]
["Tracking of Waiver Funding Limits "]
[null,"Date of Request","Total Amount Approved","Date of Request","Total Amount Approved","Date of Request","Total Amount Approved","Date of Request","Total Amount Approved","Grand Total"]
["Home Modifications",null,null,null,null,null,null,null,null,{"$f":"SUM(C36,E36,G36,I36)","v":0}]
["Assistive Technology",null,null,null,null,null,null,null,null,{"$f":"SUM(C37,E37,G37,I37)","v":0}]
["Vehicle Adaptations",null,null,null,null,null,null,null,null,{"$f":"SUM(C38,E38,G38,I38)","v":0}]

{"sheet":"Base Budget Calculator","index":3,"n_rows":25,"n_cols":8,"rows_kept":25,"cut":false,"hidden":false,"merged":[[0,0,1,3]]}
["Base Budget Calculator",null,null,null,null,"Start Date:"]
[null,null,null,null,null,"End Date:"]
[null,null,null,null,null,"Base Budget Allocation:"]
[]
["Service","Rate","Number","Hours or Units","Per","Cost","Balance","Overage"]
[null,{"$f":"IFERROR(VLOOKUP($A6,Rates!$A$2:$G$63,7,FALSE),\"\")","v":""},null,null,null,{"$f":"IFERROR(IF(E6=\"Day\",($G$2-$G$1)+1,IF(E6=\"Week\",ROUND((($G$2-$G$1)+1)/7,2),IF(E6=\"Month\",ROUND((($G$2-$G$1)+1)/30,2),1)))*IF(D6=\"Hours\",4,1)*C6*B6,\"\")","v":""},{"$f":"IFERROR(G3-F6,\"\")","v":""},{"$f":"IF(A6>0,ROUNDUP(IF(G6>0,0,((ABS(G6)/B6)/(IF(D6=\"Hours\",4,1))))/IF(E6=\"Day\",($G$2-$G$1)+1,IF(E6=\"Week\",ROUND((($G$2-$G$1)+1)/7,2),IF(E6=\"Month\",ROUND((($G$2-$G$1)+1)/30,2),1))),0)&\" \"&D6&\" Per \"&E6,\"\")","v":""}]
[null,{"$f":"IFERROR(VLOOKUP($A7,Rates!$A$2:$G$63,7,FALSE),\"\")","v":""},null,null,null,"",{"$f":"IFERROR(G6-F7,\"\")","v":""},""]
[null,{"$f":"IFERROR(VLOOKUP($A8,Rates!$A$2:$G$63,7,FALSE),\"\")","v":""},null,null,null,"",{"$f":"IFERROR(G7-F8,\"\")","v":""},""]
[null,{"$f":"IFERROR(VLOOKUP($A9,Rates!$A$2:$G$63,7,FALSE),\"\")","v":""},null,null,null,"","",""]
[null,{"$f":"IFERROR(VLOOKUP($A10,Rates!$A$2:$G$63,7,FALSE),\"\")","v":""},null,null,null,"","",""]
[null,{"$f":"IFERROR(VLOOKUP($A11,Rates!$A$2:$G$63,7,FALSE),\"\")","v":""},null,null,null,"","",""]
[null,{"$f":"IFERROR(VLOOKUP($A12,Rates!$A$2:$G$63,7,FALSE),\"\")","v":""},null,null,null,"","",""]
[null,{"$f":"IFERROR(VLOOKUP($A13,Rates!$A$2:$G$63,7,FALSE),\"\")","v":""},null,null,null,"","",""]
[null,{"$f":"IFERROR(VLOOKUP($A14,Rates!$A$2:$G$63,7,FALSE),\"\")","v":""},null,null,null,"","",""]
[null,{"$f":"IFERROR(VLOOKUP($A15,Rates!$A$2:$G$63,7,FALSE),\"\")","v":""},null,null,null,"","",""]
[null,{"$f":"IFERROR(VLOOKUP($A16,Rates!$A$2:$G$63,7,FALSE),\"\")","v":""},null,null,null,"","",""]
[null,{"$f":"IFERROR(VLOOKUP($A17,Rates!$A$2:$G$63,7,FALSE),\"\")","v":""},null,null,null,"","",""]
[null,{"$f":"IFERROR(VLOOKUP($A18,Rates!$A$2:$G$63,7,FALSE),\"\")","v":""},null,null,null,"","",""]
[null,{"$f":"IFERROR(VLOOKUP($A19,Rates!$A$2:$G$63,7,FALSE),\"\")","v":""},null,null,null,"","",""]
[null,{"$f":"IFERROR(VLOOKUP($A20,Rates!$A$2:$G$63,7,FALSE),\"\")","v":""},null,null,null,"","",""]
[null,{"$f":"IFERROR(VLOOKUP($A21,Rates!$A$2:$G$63,7,FALSE),\"\")","v":""},null,null,null,"","",""]
[null,{"$f":"IFERROR(VLOOKUP($A22,Rates!$A$2:$G$63,7,FALSE),\"\")","v":""},null,null,null,"","",""]
[null,{"$f":"IFERROR(VLOOKUP($A23,Rates!$A$2:$G$63,7,FALSE),\"\")","v":""},null,null,null,"","",""]
[null,{"$f":"IFERROR(VLOOKUP($A24,Rates!$A$2:$G$63,7,FALSE),\"\")","v":""},null,null,null,"","",""]
[null,{"$f":"IFERROR(VLOOKUP($A25,Rates!$A$2:$G$63,7,FALSE),\"\")","v":""},null,null,null,"","",""]

{"sheet":"Rates","index":4,"n_rows":95,"n_cols":17,"rows_kept":95,"cut":false,"hidden":true,"merged":[]}
["Full Name","Proc. Code","Code Description","Billing Unit","COVID Rate 3/2020-1/31/2022","Rate Feb 2022","COVID Rate 03/01/2022-09/30/2022","Rate October 2022 - June 2023","Rate July 2023 and Onward",null,null,null,"Qualifiers",66]
[{"$f":"TRIM(B2&\" \"&C2)","v":"T2029 Assistive Technology: Equip Supplies"},"T2029","Assistive Technology: Equip Supplies","Invoice","Invoice","Invoice","Invoice","Invoice","Invoice",null,null,null,"Provider Directed"]
["Community Living and Support-All Services",null,"Community Living and Support-All Services","15 min",5.61,6.16,6.73,6.73,7.54,null,null,null,"Employer of Record"]
[{"$f":"TRIM(B4&\" \"&C4)","v":"T2012GC Community Living and Support-Live in Caregiver"},"T2012GC","Community Living and Support-Live in Caregiver","15 min",5.61,5.61,6.16,6.16,7,null,null,null,"Non Base Budget"]
[{"$f":"TRIM(B5&\" \"&C5)","v":"T2012GCHQ Community Living and Support-Live in Caregiver-Group"},"T2012GCHQ","Community Living and Support-Live in Caregiver-Group","15 min",5.61,5.61,3.63,3.63,4.03,null,null,null,"Agency with Choice"]
[{"$f":"TRIM(B6&\" \"&C6)","v":"T2012 Community Living and Support-Community Only"},"T2012","Community Living and Support-Community Only","15 min",5.61,5.61,6.16,6.16,7,null,null,null,"Medicaid"]
[{"$f":"TRIM(B7&\" \"&C7)","v":"T2012HQ Community Living and Support-Community Only-Group"},"T2012HQ","Community Living and Support-Community Only-Group","15 min",5.61,5.61,3.63,3.63,4.03,null,null,null,"State"]
["T2013TF Community Living and Supports Indv","T2013TF","Community Living and Supports Indv","15 min",5.61,6.16,6.73,6.73,7.54,null,null,null,"Other"]
[{"$f":"TRIM(B9&\" \"&C9)","v":"Community Living and Support-All Services Enhanced Rate"},null,"Community Living and Support-All Services Enhanced Rate","15 min","Client Specific","Client Specific","Client Specific","Client Specific","Client Specific"]
["T2013TF Community Living and Supports Indv-ENHANCED","T2013TF","Community Living and Supports Indv-ENHANCED","15 min","Client Specific","Client Specific","Client Specific","Client Specific","Client Specific"]
[{"$f":"TRIM(B11&\" \"&C11)","v":"Community Living and Support-Group-All Services"},null,"Community Living and Support-Group-All Services","15 min",3.35,3.51,4.0599999999999996,4.0599999999999996,4.4400000000000004]
["T2013TFHQ Community Living and Supports-Group","T2013TFHQ","Community Living and Supports-Group","15 min",3.35,3.51,4.0599999999999996,4.0599999999999996,4.4400000000000004]
["T2041 Community Navigator","T2041","Community Navigator","Monthly",162.22999999999999,162.22999999999999,162.22999999999999,162.22999999999999,162.22999999999999]
["T2041U1 Community Navigator Training - Employer of Record","T2041U1","Community Navigator Training - Employer of Record","15 min",13.35,13.35,13.35,13.35,13.35,null,null,"Min Start Date:",{"$f":"MIN('DD Budget'!$G$10:$G$21)","v":"00:00:00"}]
["H2015 Community Networking","H2015","Community Networking","15 min",6.08,6.08,6.67,6.67,7.46]
["H2015U1 Community Networking - Class/Conf","H2015U1","Community Networking - Class/Conf","15 min","Invoice","Invoice","Invoice","Invoice","Invoice"]
["H2015 Community Networking Enhanced Rate","H2015","Community Networking Enhanced Rate","15 min","Client Specific","Client Specific","Client Specific","Client Specific","Client Specific",null,null,"Base Budget Services"]
["H2015HQ Community Networking- Group","H2015HQ","Community Networking- Group","15 min",3.22,3.22,3.41,3.41,3.63,null,null,"T2013TF Community Living and Supports Indv"]
["H2015U2 Community Networking Transportation","H2015U2","Community Networking Transportation","Invoice","Invoice","Invoice","Invoice","Invoice","Invoice",null,null,"T2013TFER Community Living and Supports Indv-ENHANCED"]
["T2038 Community Transition Supports","T2038","Community Transition Supports","Invoice","Invoice","Invoice","Invoice","Invoice","Invoice",null,null,"T2013TFHQ Community Living and Supports-Group"]
["T2025U3 Crisis Behavioral Consultation","T2025U3","Crisis Behavioral Consultation","15 min",33.799999999999997,33.799999999999997,32.19,32.19,32.19,null,null,"Community Living and Support-All Services"]
["H2011HI Crisis Intervention and Stabilization Supports","H2011HI","Crisis Intervention and Stabilization Supports","15 min",9.24,9.24,8.8000000000000007,8.8000000000000007,8.8000000000000007,null,null,"Community Living and Support-All Services Enhanced Rate"]
["T2027 Day Supports-Developmental Day","T2027","Day Supports-Developmental Day","1 hr.",27.86,27.86,30.12,30.12,30.12,null,null,"Community Living and Support-Group-All Services"]
["T2021HQ Day Supports-Group","T2021HQ","Day Supports-Group","1 hr.",16.53,16.53,17.25,17.25,17.97,null,null,"H2015 Community Networking"]
["T2021 Day Supports-Individual","T2021","Day Supports-Individual","1 hr.",27.86,27.86,30.12,30.12,33.21,null,null,"H2015HQ Community Networking- Group"]
["T2021 Day Supports-Individual Enhanced Rate","T2021","Day Supports-Individual Enhanced Rate","1 hr.","Client Specific","Client Specific","Client Specific","Client Specific","Client Specific",null,null,"H2015U1 Community Networking - Class/Conf"]
["T2025U1 Financial Supports","T2025U1","Financial Supports","Monthly",225.98,225.98,215.22,215.22,215.22,null,null,"H2015U2 Community Networking Transportation"]
["T2025U2 FM Supplies","T2025U2","FM Supplies","Invoice","Invoice","Invoice","Invoice","Invoice","Invoice",null,null,"T2027 Day Supports-Developmental Day"]
["S5165 Home Modifications","S5165","Home Modifications","Invoice","Invoice","Invoice","Invoice","Invoice","Invoice",null,null,"T2021HQ Day Supports-Group"]
["T1999 Individual Goods and Services","T1999","Individual Goods and Services","Invoice","Invoice","Invoice","Invoice","Invoice","Invoice",null,null,"T2021 Day Supports-Individual"]
["S5111 Natural Supports Educ - Conf","S5111","Natural Supports Educ - Conf","Invoice","Invoice","Invoice","Invoice","Invoice","Invoice",null,null,"T2021ER Day Supports-Individual Enhanced Rate"]
["S5110 Natural Supports Education","S5110","Natural Supports Education","15 min",9.69,9.69,9.23,9.23,9.23,null,null,"S5150US Respite Care- Community Facility"]
["S5170 Home Delivered Meals","S5170","Home Delivered Meals","Per Meal",6.99,6.99,6.99,6.99,6.99,null,null,"S5150HQ Respite Care- Community Group"]
["T2034 Out of Home Crisis","T2034","Out of Home Crisis","24 hr.",266.86,266.86,254.15,254.15,254.15,null,null,"S5150 Respite Care- Community Individual"]
["H2011HI Primary Crisis Response","H2011HI","Primary Crisis Response","15 min",{"$error":"#N/A"},{"$error":"#N/A"},{"$error":"#N/A"},{"$error":"#N/A"},{"$error":"#N/A"},null,null,"S5150ER Respite Care- Community Individual Enhanced Rate"]
["H2016 Residential Supports Level 1","H2016","Residential Supports Level 1","24 hr.",134.9,134.9,150.79,150.79,160.05000000000001,null,null,"T1005TE Respite Care Nursing-LPN"]
["T2014 Residential Supports Level 2","T2014","Residential Supports Level 2","24 hr.",185.15,185.15,201.04,201.04,203.75,null,null,"T1005TD Respite Care Nursing-RN"]
["T2020 Residential Supports Level 3","T2020","Residential Supports Level 3","24 hr.",206.23,206.23,222.13,222.13,222.13,null,null,"H2025HQ Supported Employment - Group"]
["H2016HI Residential Supports Level 4","H2016HI","Residential Supports Level 4","24 hr.",233.73,233.73,249.62,249.62,249.62,null,null,"H2025 Supported Employment - Individual"]
[{"$f":"TRIM(B40&\" \"&C40)","v":"H2016HI Residential Supports Level 4 Enhanced Rate"},"H2016HI","Residential Supports Level 4 Enhanced Rate","24 hr.","Client Specific","Client Specific","Client Specific","Client Specific","Client Specific",null,null,"H2025U2 Supported Employment - Transportation"]
["S5150US Respite Care- Community Facility","S5150US","Respite Care- Community Facility","24 hr.",128.32,128.32,140.41999999999999,140.41999999999999,157.84,null,null,"H2025TS Supported Employment-Long Term Follow Up"]
["S5150HQ Respite Care- Community Group","S5150HQ","Respite Care- Community Group","15 min",3.06,3.06,3.34,3.34,3.56,null,null,"H2025TSHQ Supported Employment-Long Term Follow Up Group"]
["S5150 Respite Care- Community Individual","S5150","Respite Care- Community Individual","15 min",4.0199999999999996,4.0199999999999996,4.59,4.59,5.5]
["S5150 Respite Care- Community Individual Enhanced Rate","S5150","Respite Care- Community Individual Enhanced Rate","15 min",5.28,5.28,5.03,5.03,5.03,null,null,"Add On Services"]
["T1005TE Respite Care Nursing-LPN","T1005TE","Respite Care Nursing-LPN","15 min",10.02,10.02,10.02,10.02,10.02,null,null,"T2041 Community Navigator"]
["T1005TD Respite Care Nursing-RN","T1005TD","Respite Care Nursing-RN","15 min",10.02,10.02,10.02,10.02,10.02,null,null,"T2041U1 Community Navigator Training - Employer of Record"]
["T2025 Specialized Consultative Svc","T2025","Specialized Consultative Svc","15 min",33.799999999999997,33.799999999999997,33.799999999999997,33.799999999999997,33.799999999999997,null,null,"T2038 Community Transition Supports"]
["T2025HO Specialized Consultative Svc, BCBA","T2025HO","Specialized Consultative Svc, BCBA","15 min",33.799999999999997,33.799999999999997,33.799999999999997,33.799999999999997,33.799999999999997,null,null,"T2034 Out of Home Crisis"]
["T2025 Specialized Consultative Svc, PhD-Enhanced Rate","T2025","Specialized Consultative Svc, PhD-Enhanced Rate","15 min",40.56,40.56,40.56,40.56,40.56,null,null,"S5111 Natural Supports Educ - Conf"]
["H2025HQ Supported Employment - Group","H2025HQ","Supported Employment - Group","15 min",2.15,2.15,2.44,2.44,2.89,null,null,"S5110 Natural Supports Education"]
["H2025 Supported Employment - Individual","H2025","Supported Employment - Individual","15 min",8.39,8.39,8.9499999999999993,8.9499999999999993,9.66,null,null,"T2041 Community Guide"]
["H2025U2 Supported Employment - Transportation","H2025U2","Supported Employment - Transportation","Invoice","Invoice","Invoice","Invoice","Invoice","Invoice",null,null,"T2041U1 Community Guide Training - Employer"]
["H2025TS Supported Employment-Long Term Follow Up","H2025TS","Supported Employment-Long Term Follow Up","15 min",8.39,8.39,7.99,7.99,7.99,null,null,"S5170 Home Delivered Meals"]
["H2025TSHQ Supported Employment-Long Term Follow Up Group","H2025TSHQ","Supported Employment-Long Term Follow Up Group","15 min",2.16,2.16,2.06,2.06,2.06]
["T2033 Supported Living Level 1","T2033","Supported Living Level 1","24 hr.",181.24,181.24,201.12,201.12,211.04,null,null,"Equipment and Consultative Services"]
["T2033 Supported Living Level 1-Special Needs Adjustment","T2033","Supported Living Level 1-Special Needs Adjustment",null,"Client Specific","Client Specific","Client Specific","Client Specific","Client Specific",null,null,"T2025U3 Crisis Behavioral Consultation"]
[{"$f":"TRIM(B57&\" \"&C57)","v":"T2033HI Supported Living Level 2"},"T2033HI","Supported Living Level 2","24 hr.",221.26,221.26,237.15,237.15,278.54000000000002,null,null,"S5165 Home Modifications"]
["T2033HI Supported Living Level 2-Special Needs Adjustment","T2033HI","Supported Living Level 2-Special Needs Adjustment",null,"Client Specific","Client Specific","Client Specific","Client Specific","Client Specific",null,null,"T1999 Individual Goods and Services"]
["T2033TF Supported Living Level 3","T2033TF","Supported Living Level 3","24 hr.",260.64999999999998,260.64999999999998,284.45999999999998,284.45999999999998,355.84,null,null,"T2025U1 Financial Supports"]
["T2033TF Supported Living Level 3-Special Needs Adjustment-Enhanced Rate","T2033TF","Supported Living Level 3-Special Needs Adjustment-Enhanced Rate",null,"Client Specific","Client Specific","Client Specific","Client Specific","Client Specific",null,null,"T2029 Assistive Technology: Equip Supplies"]
["T2033U1 Supported Living Periodic","T2033U1","Supported Living Periodic","15 min",5.42,5.44,6.01,6.01,6.85,null,null,"T2039 Vehicle Adaptations"]
["T2033U2 Supported Living Transition","T2033U2","Supported Living Transition",15,5.42,5.42,5.52,5.52,6.38,null,null,"T2025 Specialized Consultative Svc"]
["T2039 Vehicle Adaptations","T2039","Vehicle Adaptations","Invoice","Invoice","Invoice","Invoice","Invoice","Invoice",null,null,"T2025HO Specialized Consultative Svc, BCBA"]
[null,null,null,null,null,null,null,null,null,null,null,"T2025ER Specialized Consultative Svc, PhD"]
[]
[null,null,null,null,null,null,null,null,null,null,null,"Autism Society Rates"]
[null,null,null,null,null,null,null,null,null,null,null,"Service","3/2020-1/31/2022","Feb-22","03/01/2022-09/30/2022","October 2022 - June 2023","July 2023 and Onward"]
[null,null,null,null,null,null,null,null,null,null,null,"T2025 Specialized Consultative Svc",39.380000000000003,39.380000000000003,39.380000000000003,39.380000000000003,39.380000000000003]
[null,null,null,null,null,null,null,null,null,null,"Calculator Per","T2025HO Specialized Consultative Svc, BCBA",39.380000000000003,39.380000000000003,39.380000000000003,39.380000000000003,39.380000000000003]
[null,null,null,null,null,null,null,null,null,null,"Day","T2025ER Specialized Consultative Svc, PhD",40.56,40.56,40.56,40.56,40.56]
[null,null,null,null,null,null,null,null,null,null,"Week","T2013TF Community Living and Supports Indv",6.3,6.6,7.5,7.5,7.5]
[null,null,null,null,null,null,null,null,null,null,"Month","T2012GC Community Living and Support-Live in Caregiver",6.3,6.6,7.5,7.5,7.5]
[null,null,null,null,null,null,null,null,null,null,"Auth","T2012 Community Living and Support-Community Only",6.3,6.6,7.5,7.5,7.5]
[null,null,null,null,null,null,null,null,null,null,"Hours","Community Living and Support-All Services",6.3,6.93,7.5,7.5,7.5]
[null,null,null,null,null,null,null,null,null,null,"Units","T2021 Day Supports-Individual",28.64,28.64,30.91,30.91,30.91]
[]
[]
[null,null,null,null,null,null,null,null,null,null,"Add-Ons"]
[null,null,null,null,null,null,null,null,null,null,"T2041 Community Navigator"]
[null,null,null,null,null,null,null,null,null,null,"T2041U1 Community Navigator Training - Employer of Record"]
[null,null,null,null,null,null,null,null,null,null,"T2038 Community Transition Supports"]
[null,null,null,null,null,null,null,null,null,null,"T2034 Out of Home Crisis"]
[null,null,null,null,null,null,null,null,null,null,"S5111 Natural Supports Educ - Conf"]
[null,null,null,null,null,null,null,null,null,null,"S5110 Natural Supports Education"]
[null,null,null,null,null,null,null,null,null,null,"T2025U3 Crisis Behavioral Consultation"]
[null,null,null,null,null,null,null,null,null,null,"S5165 Home Modifications"]
[null,null,null,null,null,null,null,null,null,null,"T1999 Individual Goods and Services"]
[null,null,null,null,null,null,null,null,null,null,"T2025U1 Financial Supports"]
[null,null,null,null,null,null,null,null,null,null,"T2029 Assistive Technology: Equip  Supplies"]
[null,null,null,null,null,null,null,null,null,null,"T2039 Vehicle Adaptations"]
[null,null,null,null,null,null,null,null,null,null,"T2025 Specialized Consultative Svc"]
[null,null,null,null,null,null,null,null,null,null,"T2025HO Specialized Consultative Svc, BCBA"]
[null,null,null,null,null,null,null,null,null,null,"T2025ER Specialized Consultative Svc, PhD"]
[null,null,null,null,null,null,null,null,null,null,"T2041 Community Guide"]
[null,null,null,null,null,null,null,null,null,null,"T2041U1 Community Guide Training - Employer"]